fUSD/lending_fUSD_20251221
["ID","MTS","AMOUNT","RATE_DAILY","PERIOD"]
[399319640,1766293835279,-566.22015381,0.0001265,2]
[399319641,1766293835288,-738.57088534,0.0001265,2]
[399319642,1766293835297,-2879.26035599,0.0001265,2]
[399319643,1766293835307,-1200.0,0.00013211,2]
[399319644,1766293835316,-1000.0,0.00013213,2]
[399319645,1766293835326,-3783.66,0.0001332,2]
[399319646,1766293835335,-162.94,0.0001332,2]
[399319647,1766293835345,-376.12,0.00013323,2]
[399319648,1766293835354,-1852.42,0.00013433,2]
[399319649,1766293835363,-151832.86064437,0.000135,2]
[399319650,1766293835375,-999.0,0.000135,2]
[399319651,1766293835386,-518.04655203,0.000135,2]
[399319652,1766293835429,-343.50033458,0.000135,2]
[399319653,1766293835448,-631.85540748,0.000135,2]
[399319654,1766293835467,-1785.61962821,0.000135,2]
[399319661,1766293838036,-500.0,0.00013499,2]
[399319662,1766293838046,-175.41168947,0.00013499,2]
[399319663,1766293838055,-191.83279229,0.00013499,2]
[399319664,1766293838065,-421.51381268,0.00013499,2]
[399319665,1766293838074,-12295.8727955,0.000135,2]
[399319666,1766293838092,-1341.69773257,0.000135,2]
[399319667,1766293838103,-1260.0,0.000135,2]
[399319668,1766293838114,-1118.10003,0.000135,2]
[399319669,1766293838148,-16402.00640134,0.000135,2]
[399319670,1766293838205,-269390.81410719,0.000135,2]
[399319681,1766293840134,-424.61229598,0.000135,2]
[399319682,1766293840145,-6057.14710165,0.000135,2]
[399319683,1766293840156,-693.0149691,0.000135,2]
[399319684,1766293840166,-262.2531135,0.00013695,2]
[399319685,1766293840175,-1219.75258078,0.00013695,2]
[399319686,1766293840187,-999.66675862,0.00013695,2]
[399319687,1766293840196,-110.19963282,0.00013699,2]
[399319688,1766293840207,-860.03036718,0.00013699,2]
[399319689,1766293840217,-211.85218071,0.000137,2]
[399319690,1766293840229,-1103.10546808,0.000137,2]
[399319691,1766293840240,-451.51235121,0.000137,2]
[399319692,1766293840250,-1766.47,0.000137,2]
[399319693,1766293840259,-1766.47,0.000137,2]
[399319694,1766293840269,-4984.50764879,0.00013723,2]
[399319695,1766293840284,-999.99995,0.00013723,2]
[399319702,1766293843139,-767.22101743,0.00013723,2]
[399319703,1766293843151,-639.4710435,0.00013759,2]
[399319704,1766293843163,-8012.39268238,0.00013759,2]
[399319705,1766293843174,-533.591,0.00013805,2]
[399319706,1766293843185,-2500.0,0.00013805,2]
[399319707,1766293843195,-2500.0,0.00013805,2]
[399319708,1766293843204,-2500.0,0.00013805,2]
[399319709,1766293843214,-2500.0,0.00013805,2]
[399319710,1766293843223,-2500.0,0.00013805,2]
[399319711,1766293843234,-300.0,0.00013805,2]
[399319712,1766293843244,-300.0,0.00013805,2]
[399319713,1766293843254,-300.0,0.00013805,2]
[399319714,1766293843263,-300.0,0.00013805,2]
[399319715,1766293843273,-300.0,0.00013805,2]
[399319716,1766293843284,-300.0,0.00013805,2]
[399319717,1766293843294,-300.0,0.00013805,2]
[399319718,1766293843304,-300.0,0.00013805,2]
[399319719,1766293843314,-302.39597639,0.00013805,2]
[399319720,1766293843323,-193.58299043,0.00013805,2]
[399319721,1766293843332,-5000.0,0.00013805,3]
[399319722,1766293843341,-1489.47687703,0.00013805,3]
[399319723,1766293843351,-1766.47,0.00013805,2]
[399319724,1766293843360,-1766.47,0.00013805,2]
[399319725,1766293843373,-20817.71677708,0.00013815,2]
[399319726,1766293843388,-1332.06751711,0.00013815,2]
[399319727,1766293843405,-6697.50952846,0.00013815,2]
[399319728,1766293843466,-739.25927689,0.00013815,2]
[399319763,1766293846053,-1036.49957264,0.0001265,2]
[399319764,1766293846063,-2802.1445782,0.00013815,2]
[399319765,1766293846074,-423.74647872,0.00013815,2]
[399319766,1766293846109,-154526.39245958,0.00013815,2]
[399319767,1766293846166,-1178.16955464,0.00013815,2]
[399319768,1766293846177,-1203.37088605,0.00013815,2]
[399319769,1766293846188,-611.68963455,0.00013815,2]
[399319770,1766293846199,-433.02848958,0.00013815,2]
[399319771,1766293846211,-274.18,0.00013815,2]
[399319772,1766293846222,-1185.3213471,0.00013815,2]
[399319773,1766293846232,-2245.3092668,0.00013815,2]
[399319774,1766293846243,-404.72580003,0.00013815,2]
[399319775,1766293846256,-745.7042,0.00013815,2]
[399319776,1766293846268,-3201.47348019,0.00013815,2]
[399319777,1766293846279,-5570.45453968,0.00013815,2]
[399319778,1766293846291,-3421.06340294,0.00013815,2]
[399319779,1766293846302,-708.59583745,0.00013815,2]
[399319780,1766293846314,-176032.95620073,0.00013815,2]
[399319781,1766293846346,-500.0,0.00013814,2]
[399319782,1766293846355,-12554.6975725,0.00013815,2]
[399319783,1766293846366,-2183.75458493,0.00013815,2]
[399319789,1766293931261,993.0,0.000226,120]
[399319799,1766294106089,180.0,0.000145,120]
[399319977,1766295032230,-2205.88592063,0.0001273,2]
[399319978,1766295032294,-815.86407937,0.0001273,2]
[399319979,1766295032304,-377.70571056,0.00012734,3]
[399319980,1766295032347,-539.07428944,0.00012734,3]
[399319981,1766295032357,-178.21884447,0.00012761,2]
[399319982,1766295032368,-21.78115553,0.00012761,2]
[399319983,1766295032377,-300.0,0.00013022,2]
[399319984,1766295032387,-866.21884447,0.00013022,2]
[399319985,1766295032410,-333.78115553,0.00013022,2]
[399319986,1766295032419,-300.0,0.00013022,2]
[399319987,1766295032429,-129.26854214,0.00013023,2]
[399319988,1766295032440,-23.12145786,0.00013023,2]
[399319989,1766295032449,-152.66,0.00013023,2]
[399319990,1766295032458,-151.74,0.00013023,2]
[399319991,1766295032467,-152.87,0.00013023,2]
[399319992,1766295032476,-152.56,0.00013023,2]
[399319993,1766295032486,-152.61,0.00013023,2]
[399319994,1766295032495,-152.78,0.00013023,2]
[399319995,1766295032504,-152.9,0.00013023,2]
[399319996,1766295032514,-152.22,0.00013023,2]
[399319998,1766295032523,-152.01,0.00013023,2]
[399319999,1766295032532,-224.56,0.00013023,2]
[399320000,1766295032541,-500.0,0.00013439,2]
[399320001,1766295032551,-500.0,0.00013439,2]
[399320002,1766295032560,-151.49,0.00013496,2]
[399320003,1766295032569,-151.32,0.00013496,2]
[399320005,1766295032579,-151.1,0.00013497,2]
[399320006,1766295032588,-152.76,0.00013497,2]
[399320007,1766295032598,-151.6,0.00013497,2]
[399320008,1766295032607,-152.13,0.00013497,2]
[399320009,1766295032616,-150.45,0.00013497,2]
[399320010,1766295032625,-150.46,0.00013497,2]
[399320011,1766295032635,-152.53,0.00013497,2]
[399320012,1766295032643,-110.269393,0.00013497,2]
[399320018,1766295038296,-150.0,0.00013439,2]
[399320019,1766295038307,-918.270607,0.00013497,2]
[399320020,1766295038316,-151.9,0.00013498,2]
[399320021,1766295038326,-150.62,0.00013498,2]
[399320022,1766295038336,-150.25,0.00013498,2]
[399320023,1766295038346,-150.83,0.00013498,2]
[399320024,1766295038355,-151.69,0.00013498,2]
[399320025,1766295038365,-152.47,0.00013498,2]
[399320026,1766295038374,-151.91,0.00013498,2]
[399320027,1766295038384,-151.65,0.00013498,2]
[399320028,1766295038393,-152.96,0.00013498,2]
[399320029,1766295038403,-151.58,0.00013498,2]
[399320030,1766295038412,-152.94,0.00013499,2]
[399320031,1766295038422,-500.0,0.00013576,2]
[399320032,1766295038431,-500.0,0.00013576,2]
[399320033,1766295038441,-150.0,0.00013576,2]
[399320034,1766295038451,-426.873,0.00013614,2]
[399320035,1766295038460,-150.0,0.00013614,2]
[399320036,1766295038470,-3496.056393,0.00013615,2]
[399320037,1766295038486,-9561.03202494,0.00013615,2]
[399320038,1766295038496,-16628.25085898,0.00013615,2]
[399320039,1766295038505,-499.59486286,0.00013615,2]
[399320040,1766295038515,-184.38315852,0.00013615,2]
[399320041,1766295038524,-548.11803732,0.00013615,2]
[399320042,1766295038534,-500.0,0.00013706,2]
[399320043,1766295038543,-200.0,0.00013706,2]
[399320044,1766295038553,-297.7560138,0.00013711,2]
[399320045,1766295038562,-500.0,0.00013711,2]
[399320046,1766295038572,-500.0,0.00013711,2]
[399320048,1766295038581,-500.0,0.00013711,2]
[399320049,1766295038590,-500.0,0.00013711,2]
[399320050,1766295038600,-500.0,0.00013711,2]
[399320051,1766295038609,-419.84535872,0.00013711,2]
[399320052,1766295038619,-409.14306443,0.00013711,2]
[399320053,1766295038629,-500.0,0.00013711,2]
[399320054,1766295038638,-500.0,0.00013711,2]
[399320055,1766295038648,-500.0,0.00013711,2]
[399320056,1766295038657,-500.0,0.00013711,2]
[399320057,1766295038667,-500.0,0.00013711,2]
[399320058,1766295038679,-500.0,0.00013711,2]
[399320059,1766295038689,-151.0,0.00013711,2]
[399320060,1766295038698,-500.0,0.00013713,2]
[399320061,1766295038708,-472.80066621,0.00013713,2]
[399320062,1766295038718,-170.04039859,0.00013713,2]
[399320063,1766295038728,-645.05966887,0.00013713,2]
[399320064,1766295038737,-1115.57403938,0.00013713,5]
[399320065,1766295038747,-500.0,0.00013713,2]
[399320066,1766295038758,-219424.4973999,0.00013714,2]
[399320135,1766295046337,-2505.35903128,0.00013714,2]
[399320136,1766295046450,-1585.57444177,0.00013714,2]
[399320159,1766295184546,150.0,0.00014391,120]
[399320282,1766295602006,1011.93,0.00022,30]
[399320350,1766295903099,176.0,0.00021606,120]
[399320386,1766296092525,1762.19471148,0.000226,120]
[399320418,1766296231348,-418.26636555,0.00012976,2]
[399320419,1766296231360,-1361.92363445,0.00012976,2]
[399320420,1766296231369,-26.99591497,0.00012976,2]
[399320421,1766296231380,-229.00408503,0.00012976,2]
[399320422,1766296231389,-250.0,0.00013063,2]
[399320423,1766296231398,-150.0,0.00013117,2]
[399320424,1766296231409,-287.0,0.00013204,2]
[399320425,1766296231419,-905.6,0.00013204,2]
[399320426,1766296231515,-294.4,0.00013204,2]
[399320427,1766296231525,-182.23047198,0.00013204,2]
[399320449,1766296237380,-104.76952802,0.00013204,2]
[399320450,1766296237391,-578.20924308,0.00013205,2]
[399320451,1766296237400,-200.0,0.00013205,2]
[399320452,1766296237411,-207.4,0.00013205,2]
[399320453,1766296237421,-215.0738,0.00013205,2]
[399320454,1766296237430,-223.0315306,0.00013205,2]
[399320455,1766296237439,-231.28369723,0.00013205,2]
[399320456,1766296237448,-239.84119403,0.00013205,2]
[399320457,1766296237458,-248.71531821,0.00013205,2]
[399320458,1766296237467,-257.91778498,0.00013205,2]
[399320459,1766296237476,-899.97,0.00013205,2]
[399320460,1766296237486,-184.38315852,0.00013315,2]
[399320461,1766296237498,-261.94792507,0.00013406,2]
[399320462,1766296237507,-233.20354786,0.00013406,2]
[399320463,1766296237517,-185.65340082,0.00013406,2]
[399320464,1766296237526,-500.0,0.00013406,2]
[399320465,1766296237535,-500.0,0.00013406,2]
[399320466,1766296237545,-327.63452752,0.00013406,2]
[399320467,1766296237554,-39364.49324062,0.00013407,2]
[399320468,1766296237566,-63384.81056511,0.00013407,2]
[399320469,1766296237577,-154992.52868659,0.00013407,2]
[399320470,1766296237587,-3505.04343299,0.00013407,2]
[399320471,1766296237602,-588.0,0.00013407,2]
[399320472,1766296237613,-865.18963734,0.00013407,2]
[399320493,1766296240293,-628.0193291,0.00013407,2]
[399320498,1766296242563,-170.30114927,0.00013406,2]
[399320499,1766296242574,-500.0,0.00013406,2]
[399320500,1766296242583,-460.09958086,0.00013406,2]
[399320501,1766296242619,-39.90041914,0.00013406,2]
[399320502,1766296242630,-191.5068436,0.00013406,2]
[399320503,1766296242640,-237.65880762,0.00013406,2]
[399320504,1766296242652,-262.34119238,0.00013406,2]
[399320505,1766296242662,-246.61863794,0.00013406,2]
[399320506,1766296242728,-253.38136206,0.00013406,2]
[399320507,1766296242739,-342.36956146,0.00013406,2]
[399320508,1766296242750,-157.63043854,0.00013406,2]
[399320509,1766296242760,-500.0,0.00013406,2]
[399320510,1766296242770,-359.10521903,0.00013406,2]
[399320511,1766296242779,-4280.45884429,0.00013407,2]
[399320521,1766296245513,-1734.15988836,0.00013407,2]
[399320522,1766296245537,-6556.42355414,0.00013407,2]
[399320523,1766296245561,-304.22,0.00013407,2]
[399320524,1766296245586,-365.6300001,0.00013407,2]
[399320525,1766296245597,-349.87046341,0.00013407,2]
[399320526,1766296245608,-114193.81213924,0.00013407,2]
[399320527,1766296245700,-808.13842488,0.00013407,2]
[399320792,1766297388437,150.82,6.162e-05,2]
[399320799,1766297431517,-150.82,0.00012325,2]
[399320800,1766297431526,-311.3100956,0.00012381,2]
[399320801,1766297431538,-1075.43,0.00012381,2]
[399320802,1766297431548,-113.2599044,0.00012381,2]
[399320803,1766297431557,-197.15,0.00012427,2]
[399320804,1766297431567,-505.41409908,0.00012436,2]
[399320805,1766297431629,-494.58590092,0.00012436,2]
[399320806,1766297431638,-374.97409908,0.00012441,2]
[399320807,1766297431649,-999.0,0.00012441,2]
[399320808,1766297431689,-384.78397968,0.00012441,2]
[399320809,1766297431702,-1481.24192124,0.00012441,2]
[399320810,1766297431711,-162.85,0.00012454,2]
[399320811,1766297431720,-104.99635749,0.00012581,2]
[399320812,1766297431731,-826.80364251,0.00012581,2]
[399320813,1766297431740,-988.25485061,0.00013,2]
[399320814,1766297431751,-11.74514939,0.00013,2]
[399320816,1766297431760,-1969.54969268,0.00013035,2]
[399320818,1766297431769,-152.49,0.00013139,2]
[399320820,1766297431778,-341.498,0.00013139,2]
[399320822,1766297431787,-638.33408551,0.00013143,2]
[399320823,1766297431798,-200.0,0.00013143,2]
[399320824,1766297431808,-344.81753355,0.00013143,2]
[399320826,1766297431817,-150.0,0.00013198,2]
[399320828,1766297431826,-470.21191321,0.00013199,2]
[399320829,1766297431835,-21786.84302507,0.00013199,2]
[399320830,1766297431845,-197.05869145,0.00013212,2]
[399320831,1766297431855,-163.2424835,0.00013214,2]
[399320832,1766297431866,-500.0,0.00013214,2]
[399320833,1766297431875,-183.36354755,0.00013214,2]
[399320834,1766297431884,-429.34416926,0.00013214,2]
[399320835,1766297431893,-151.011691,0.00013214,2]
[399320836,1766297431902,-5387.2560101,0.00013215,2]
[399320837,1766297431914,-93987.85565696,0.00013215,2]
[399320838,1766297431925,-593.81296772,0.00013215,2]
[399320839,1766297431935,-271.414428,0.00013215,2]
[399320842,1766297437666,-180.81647596,0.00013199,2]
[399320843,1766297437676,-686.57413225,0.00013215,2]
[399320844,1766297437687,-342.16474441,0.00013215,2]
[399320845,1766297437698,-17534.53256987,0.00013215,2]
[399320846,1766297437724,-581.24272834,0.00013215,2]
[399320847,1766297438228,-9866.85568129,0.00013215,2]
[399320857,1766297439753,-410.52,0.00013215,2]
[399320858,1766297439919,-9068.64992968,0.00013215,2]
[399320859,1766297440090,-285332.03525297,0.00013215,2]
[399320860,1766297440101,-59110.34930554,0.00013215,2]
[399320866,1766297442754,-19031.5273683,0.00013215,2]
[399320867,1766297442810,-686.78059288,0.00013215,2]
[399320872,1766297446393,-96138.97844491,0.00013215,2]
[399320873,1766297446404,-1281.89246576,0.00013215,2]
[399320874,1766297446423,-3191.69079946,0.00013215,2]
[399320875,1766297446434,-608.21731146,0.00013215,2]
[399320876,1766297446448,-1434.61950838,0.00013215,2]
[399320877,1766297446463,-629.8598895,0.00013215,2]
[399321095,1766298631672,-300.0,0.00012161,2]
[399321097,1766298631682,-1200.0,0.00012161,2]
[399321098,1766298631691,-250.0,0.00012162,2]
[399321099,1766298631701,-18694.10087418,0.00012162,2]
[399321100,1766298631713,-4637.31993767,0.00012162,2]
[399321101,1766298631754,-3556.59746186,0.00012162,2]
[399321102,1766298631765,-1090.32619314,0.00012162,2]
[399321103,1766298631814,-737.22721849,0.00012162,2]
[399321104,1766298631825,-1525.2084021,0.00012162,2]
[399321105,1766298631874,-1893.71991256,0.00012162,2]
[399321107,1766298631884,-500.0,0.00012206,2]
[399321109,1766298631893,-150.0,0.00012295,2]
[399321111,1766298631902,-5554.18,0.00012331,2]
[399321112,1766298631911,-999.0,0.00012501,3]
[399321113,1766298631920,-261.25,0.00012524,2]
[399321114,1766298631930,-6064.64692892,0.00012953,2]
[399321115,1766298631940,-1432.6153019,0.00012953,2]
[399321118,1766298637756,-2123.73424243,0.00012953,2]
[399321119,1766298637767,-1691.06524236,0.00012953,2]
[399321120,1766298637778,-3375.5170958,0.00012953,2]
[399321121,1766298637790,-6255.97869153,0.00012953,2]
[399321122,1766298637799,-1200.0,0.0001298,2]
[399321123,1766298637810,-150.0,0.00012981,2]
[399321124,1766298637820,-500.0,0.00012981,2]
[399321125,1766298637829,-500.0,0.00012981,2]
[399321126,1766298637839,-500.0,0.00012981,2]
[399321127,1766298637848,-500.0,0.00012981,2]
[399321128,1766298637858,-500.0,0.00012981,2]
[399321129,1766298637867,-500.0,0.00012981,2]
[399321130,1766298637876,-293.84344139,0.00012981,2]
[399321131,1766298637885,-500.0,0.00012981,2]
[399321132,1766298637894,-500.0,0.00012981,2]
[399321133,1766298637903,-500.0,0.00012981,2]
[399321134,1766298637914,-500.0,0.00012981,2]
[399321135,1766298637923,-500.0,0.00012981,2]
[399321136,1766298637933,-500.0,0.00012981,2]
[399321137,1766298637942,-500.0,0.00012981,2]
[399321138,1766298637955,-500.0,0.00012981,2]
[399321139,1766298637964,-500.0,0.00012981,2]
[399321140,1766298637974,-500.0,0.00012981,2]
[399321141,1766298637984,-500.0,0.00012981,2]
[399321142,1766298637994,-500.0,0.00012981,2]
[399321144,1766298638003,-301.07675881,0.00012981,2]
[399321145,1766298638015,-198.92324119,0.00012981,2]
[399321147,1766298638024,-500.0,0.00012981,2]
[399321148,1766298638034,-554.31365676,0.00012981,2]
[399321149,1766298638043,-66.40810155,0.00012984,2]
[399321150,1766298638054,-345.0273225,0.00012984,2]
[399321151,1766298638064,-254.08020516,0.00012988,2]
[399321152,1766298638073,-96.94807928,0.0001299,2]
[399321153,1766298638088,-3292.79374155,0.0001299,2]
[399321154,1766298638100,-472.99476026,0.0001299,2]
[399321155,1766298638110,-740.0,0.00013001,2]
[399321156,1766298638119,-206.73119609,0.00013027,2]
[399321157,1766298638131,-281.55,0.00013027,2]
[399321158,1766298638142,-317.71880391,0.00013027,2]
[399321159,1766298638151,-232.68901085,0.00013046,2]
[399321160,1766298638161,-23.59218524,0.00013046,2]
[399321162,1766298639956,-167.96830886,0.00013046,2]
[399321163,1766298639966,-500.0,0.00013046,2]
[399321164,1766298639975,-287.10441296,0.00013046,2]
[399321165,1766298639984,-500.0,0.00013046,2]
[399321166,1766298639994,-360029.49181211,0.00013047,2]
[399321167,1766298640016,-4943.9280871,0.00013047,2]
[399321171,1766298642850,-10906.82952769,0.00013047,2]
[399321172,1766298642907,-897.93027432,0.00013047,2]
[399321173,1766298643075,-306.23900044,0.00013047,2]
[399321175,1766298646031,-254.08020516,0.00013047,2]
[399321188,1766298729035,5525.0,0.000135,5]
[399321195,1766298761356,5525.0,0.000135,5]
[399321201,1766298792700,3416.0,0.000134,5]
[399321365,1766299618029,-378.77812001,0.00012032,2]
[399321368,1766299622858,-276.18542143,0.00012032,2]
[399321370,1766299624603,-280.22287765,0.00012032,2]
[399321393,1766299753026,-534.03598684,0.00011965,2]
[399321394,1766299756606,-167.68895809,0.00011965,2]
[399321419,1766299798458,-138.24505507,0.00011965,2]
[399321420,1766299798485,-83.018772,0.00011965,2]
[399321422,1766299800596,-233.58226999,0.00011965,2]
[399321426,1766299805118,-172.1943982,0.00011965,2]
[399321428,1766299808183,-75.8056018,0.00011965,2]
[399321429,1766299808207,-161.33071994,0.00011965,2]
[399321432,1766299811138,-269.4494774,0.00011965,2]
[399321433,1766299811163,-56.85654523,0.00011965,2]
[399321438,1766299831913,-491.71169284,0.00011965,2]
[399321439,1766299831923,-195.0,0.00011999,2]
[399321440,1766299831932,-1652.52402547,0.00012032,2]
[399321441,1766299831943,-652.28955544,0.00012032,2]
[399321442,1766299831953,-195.0,0.00012079,2]
[399321443,1766299831963,-1001.84535602,0.00012132,2]
[399321444,1766299831974,-198.15464398,0.00012132,2]
[399321445,1766299831983,-689.9915683,0.00012133,2]
[399321446,1766299831994,-3030.76104923,0.00012133,2]
[399321447,1766299832006,-954.44658247,0.00012133,2]
[399321448,1766299832015,-160.35,0.00012134,2]
[399321449,1766299832025,-300.0,0.00012752,2]
[399321450,1766299832034,-5495.7551,0.00012753,2]
[399321451,1766299832043,-300.0,0.00012785,2]
[399321452,1766299832052,-150.0,0.00012786,2]
[399321453,1766299832061,-150.0,0.00012786,2]
[399321454,1766299832070,-150.0,0.00012786,2]
[399321455,1766299832079,-150.0,0.00012822,2]
[399321456,1766299832088,-637.71514096,0.00012822,2]
[399321457,1766299832103,-149.76485904,0.00012822,2]
[399321458,1766299832112,-425.98514096,0.00012822,2]
[399321459,1766299832122,-74.01485904,0.00012822,2]
[399321460,1766299832131,-266.18486186,0.00012822,2]
[399321461,1766299832140,-58.64092684,0.00012822,2]
[399321462,1766299832151,-441.35907316,0.00012822,2]
[399321463,1766299832160,-500.0,0.00012822,2]
[399321464,1766299832169,-500.0,0.00012822,2]
[399321465,1766299832178,-173.14472652,0.00012822,2]
[399321466,1766299832187,-708.12064805,0.00012823,2]
[399321467,1766299832200,-204.26622274,0.00012823,2]
[399321468,1766299832211,-200.0,0.00012845,2]
[399321469,1766299832220,-500.0,0.00012845,2]
[399321470,1766299832229,-200.0,0.00012845,2]
[399321471,1766299832241,-1001.90116593,0.00012852,2]
[399321472,1766299832252,-188.19587484,0.00012852,2]
[399321473,1766299832262,-500.0,0.00012852,2]
[399321474,1766299832271,-235.9164769,0.00012852,2]
[399321475,1766299832282,-500.0,0.00012852,2]
[399321476,1766299832291,-346.5675352,0.00012852,2]
[399321477,1766299832301,-26.08808993,0.00012852,2]
[399321478,1766299832313,-247.11091007,0.00012852,2]
[399321479,1766299832322,-909.5062336,0.00012853,2]
[399321480,1766299832338,-1232.94344881,0.00012853,2]
[399321481,1766299832349,-754.82269806,0.00012853,2]
[399321482,1766299832361,-13901.0317311,0.00012853,2]
[399321483,1766299832375,-292.97700002,0.00012853,2]
[399321488,1766299838012,-400.0,0.00012853,2]
[399321489,1766299838069,-4071.55773437,0.00012853,2]
[399321490,1766299838082,-78199.0159329,0.00012853,2]
[399321491,1766299838093,-349.43400439,0.00012853,2]
[399321492,1766299838140,-3341.54631403,0.00012853,2]
[399321493,1766299838151,-6769.46469655,0.00012853,2]
[399321494,1766299838203,-72096.80680299,0.00012853,2]
[399321495,1766299838214,-638.55537377,0.00012853,2]
[399321502,1766299840135,-393.32997753,0.00012853,2]
[399321510,1766299840648,-1.7e-07,0.00012853,2]
[399321520,1766299843039,-1559.19040186,0.00012853,2]
[399321521,1766299843153,-26582.72155755,0.00012853,2]
[399321525,1766299846013,-332.818322,0.00012853,2]
[399321526,1766299846244,-7415.94707886,0.00012853,2]
[399321587,1766299987794,150.81,5.995e-05,2]
[399321696,1766300608088,-200.0,0.00010959,2]
[399321697,1766300608119,-200.0,0.00010959,2]
[399321698,1766300608152,-108.21033586,0.00010959,2]
[399321703,1766300634975,255.77738171,0.00013025,7]
[399321712,1766300713666,-91.78966414,0.00010959,2]
[399321713,1766300713690,-117.1494923,0.00011193,2]
[399321734,1766300906762,1000.0,0.0001,2]
[399321740,1766300933911,1593.88539772,0.0001,3]
[399321746,1766300952944,-182.8505077,0.00011193,2]
[399321747,1766300952966,-124.64862057,0.0001131,2]
[399321748,1766300955899,153.46642903,0.00012872,7]
[399321754,1766301013044,-175.35137943,0.0001131,2]
[399321755,1766301013070,-217.96492571,0.0001131,2]
[399321759,1766301021115,-25.03507429,0.0001131,2]
[399321760,1766301021144,-150.0,0.00011631,2]
[399321761,1766301021172,-200.0,0.00011895,2]
[399321762,1766301021200,-150.81,0.00011991,2]
[399321763,1766301021227,-1000.0,0.00012042,2]
[399321764,1766301021255,-300.0,0.00012055,2]
[399321765,1766301021282,-195.0,0.00012312,2]
[399321766,1766301021307,-300.0,0.00012312,2]
[399321767,1766301021333,-300.0,0.00012312,2]
[399321768,1766301021358,-240.0,0.00012431,2]
[399321769,1766301021384,-300.0,0.00012441,2]
[399321770,1766301021410,-195.0,0.00012441,2]
[399321771,1766301021437,-599.0,0.00012474,2]
[399321772,1766301021465,-1200.0,0.00012498,2]
[399321773,1766301021492,-1123.0,0.00012499,2]
[399321774,1766301021519,-271.62517887,0.00012512,2]
[399321775,1766301021546,-150.0,0.00012512,2]
[399321776,1766301021573,-300.0,0.00012523,2]
[399321777,1766301021600,-492.0,0.00012524,2]
[399321778,1766301021626,-1492.0,0.00012546,2]
[399321779,1766301021654,-961.0,0.00012549,2]
[399321780,1766301021679,-856.0,0.00012571,2]
[399321781,1766301021706,-860.0,0.00012573,2]
[399321782,1766301021733,-733.0,0.00012596,2]
[399321783,1766301021759,-1567.0,0.00012621,2]
[399321784,1766301021784,-200.0,0.00012649,2]
[399321785,1766301021813,-787.983,0.00012651,2]
[399321786,1766301021841,-150.0,0.00012651,2]
[399321787,1766301021867,-1000.0,0.00012652,2]
[399321788,1766301021892,-4581.4363,0.00012652,2]
[399321789,1766301021920,-2500.0,0.00012652,2]
[399321790,1766301021946,-1000.0,0.00012652,2]
[399321791,1766301021971,-2390.92623443,0.00012652,2]
[399321792,1766301021997,-456.04235594,0.00012652,2]
[399321793,1766301022023,-381.51381391,0.00012652,2]
[399321794,1766301022058,-500.0,0.00012652,2]
[399321795,1766301022085,-500.0,0.00012652,2]
[399321796,1766301022121,-241.46052517,0.00012652,2]
[399321797,1766301022153,-500.0,0.00012652,2]
[399321798,1766301022176,-441.72819276,0.00012652,2]
[399321799,1766301022212,-500.0,0.00012652,2]
[399321800,1766301022246,-500.0,0.00012652,2]
[399321801,1766301022284,-500.0,0.00012652,2]
[399321802,1766301022316,-500.0,0.00012652,2]
[399321803,1766301022341,-150.0,0.00012655,2]
[399321804,1766301022365,-500.0,0.00012658,2]
[399321805,1766301022390,-229.71,0.00012664,2]
[399321806,1766301022415,-18849.2017527,0.00012667,2]
[399321807,1766301022439,-718.24684742,0.00012667,2]
[399321808,1766301022463,-210.95255528,0.00012667,2]
[399321809,1766301022486,-500.0,0.00012667,2]
[399321810,1766301022510,-325.0,0.00012731,2]
[399321811,1766301022535,-1643.0,0.00012741,2]
[399321812,1766301022558,-296.88014446,0.00012744,2]